Cogmind - Beta 9.6 @@@ ROGUE MODE // 2020.04.22 @ 15:23:52 Player: alice_fexa Result: Escaped! Performance ------------- Evolutions (9) 4500 Regions Visited (28) 5600 Robots Destroyed (139) 695 Value Destroyed (3740) 3740 Prototype IDs (83) 1660 Alien Tech Used (1) 200 Bonus (4759) 4759 TOTAL SCORE: 21154 Bonus ------- High Alert Combat Kills 65 Follower Combat Kills 240 Met Data Miner 300 Met Imprinter 300 Met Zhirov 300 MAIN.C Attacked Warlord 500 Warlord Defense Kill 54 Win 3000 Cogmind --------- Core Integrity 1551/1600 Matter 143/300 Energy 276/280 System Corruption 4% Temperature Cool (4) Movement Flying (26) Location To Epsilon Eridani Parts ------- > --- POWER (2) -------- Light Quantum Reactor Light Quantum Reactor > --- PROPULSION (4) --- Cooled Nuclear Pulse Thruster Electron Diverter Electron Diverter Electron Diverter > --- UTILITY (17) ----- Power Amplifier Medium Storage Unit Experimental Optical Array Experimental Sensor Array Experimental Signal Interpreter Advanced Melee Analysis Suite Advanced Reaction Control System Hacking Suite Hacking Suite Hacking Suite Hacking Suite Improved Hacking Suite Improved Hacking Suite Ghost Barrier Quantum Router > --- WEAPON (2) ------- Mini Smartbomb Launcher Kinetic Spear > --- INVENTORY (8) ---- Light Angular Momentum Engine Improved Cesium-ion Thruster Improved Cesium-ion Thruster Advanced Energy Well (800) Improved Matter Compressor (62) Advanced Weight Redist. System Experimental Sensor Array Kinetic Spear Peak State ------------ > --- POWER ------------ Light Quantum Reactor Light Quantum Reactor > --- PROPULSION ------- Cooled Nuclear Pulse Thruster Electron Diverter Electron Diverter Electron Diverter > --- UTILITY ---------- Power Amplifier Medium Storage Unit Experimental Optical Array Experimental Sensor Array Experimental Signal Interpreter Advanced Melee Analysis Suite Advanced Melee Analysis Suite Advanced Reaction Control System Hacking Suite Hacking Suite Hacking Suite Hacking Suite Improved Hacking Suite Improved Hacking Suite Improved Hacking Suite Ghost Barrier Quantum Router > --- WEAPON ----------- Mini Smartbomb Launcher Kinetic Spear > --- INVENTORY -------- Light Angular Momentum Engine Improved Cesium-ion Thruster Improved Cesium-ion Thruster Advanced Energy Well Improved Matter Compressor Advanced Weight Redist. System Experimental Sensor Array Kinetic Spear [Rating: 160] Favorites ----------- Power Light Angular Momentum Engine Engine Light Angular Momentum Engine Power Core Light Nuclear Core Reactor Light Quantum Reactor Propulsion Improved Cesium-ion Thruster Treads Light Treads Wheel Wheel Flight Unit Improved Cesium-ion Thruster Utility Hacking Suite Device Advanced Weight Redist. System Storage High-capacity Storage Unit Processor Advanced Signal Interpreter Hackware Hacking Suite Protection Heavy Armor Plating Weapon Kinetic Spear Energy Gun EM Pulse Gun Ballistic Gun Enhanced Autogun Ballistic Cannon Light Cannon Launcher Mini Smartbomb Launcher Impact Weapon Shock Maul Slashing Weapon Scythe Piercing Weapon Kinetic Spear Special Melee Weapon Improved Datajack Build | -11 -10 -10 -10 -9 -8 -7 -7 -7 -7 -6 -6 -6 -6 -6 -5 -5 -5 -5 -5 -4 -4 -4 -4 -4 -3 -3 -2 -1 ------- Run | Scr Mat Min Exi Min Mat Fac Low Low Dat Pro Fac Low Low Zio Pro Fac Upp Upp Zhi Pro Fac Upp Upp War Pro Res Res Acc Slots Evolved 18 | . . . . . 4 2 . . . . 2 . . . . 2 . . . . 2 . . . . 2 2 2 Power 1 | . . . . . . . . . . . . . . . . . . . . . . . . . . . 1 . Propulsion 2 | . . . . . . . . . . . . . . . . . . . . . . . . . . 1 1 . Utility 15 | . . . . . 4 2 . . . . 2 . . . . 2 . . . . 2 . . . . 1 . 2 Weapon . | . . . . . . . . . . . . . . . . . . . . . . . . . . . . . Parts Attached 204 | 6 19 . . 3 44 31 . 2 4 1 21 7 3 . . 18 . 2 6 . 3 . . 9 1 12 4 8 Power 26 | 1 3 . . . 7 3 . . . . 6 . . . . 3 . . . . . . . . . . 1 2 Engine 7 | 1 3 . . . . . . . . . . . . . . 2 . . . . . . . . . . 1 . Core 17 | . . . . . 7 3 . . . . 6 . . . . 1 . . . . . . . . . . . . Reactor 2 | . . . . . . . . . . . . . . . . . . . . . . . . . . . . 2 Propulsion 38 | 2 3 . . . 13 9 . . . . 4 . . . . . . . . . . . . 2 1 1 1 2 Treads 9 | 1 1 . . . 7 . . . . . . . . . . . . . . . . . . . . . . . Leg . | . . . . . . . . . . . . . . . . . . . . . . . . . . . . . Wheel 9 | 1 2 . . . 6 . . . . . . . . . . . . . . . . . . . . . . . Hover . | . . . . . . . . . . . . . . . . . . . . . . . . . . . . . Flight 20 | . . . . . . 9 . . . . 4 . . . . . . . . . . . . 2 1 1 1 2 Utility 99 | 1 7 . . . 16 17 . 2 2 1 8 3 3 . . 13 . . 4 . 1 . . 6 . 10 2 3 Device 38 | . . . . . 6 9 . 1 . 1 2 . 1 . . 5 . . 2 . 1 . . 2 . 7 . 1 Storage 16 | 1 7 . . . 1 1 . . . . . 1 . . . 1 . . 1 . . . . 3 . . . . Processor 12 | . . . . . 4 1 . . . . . 1 1 . . 1 . . . . . . . 1 . 2 . 1 Hackware 24 | . . . . . . 5 . . 1 . 6 1 1 . . 6 . . . . . . . . . 1 2 1 Protection 9 | . . . . . 5 1 . 1 1 . . . . . . . . . 1 . . . . . . . . . Artifact . | . . . . . . . . . . . . . . . . . . . . . . . . . . . . . Weapon 41 | 2 6 . . 3 8 2 . . 2 . 3 4 . . . 2 . 2 2 . 2 . . 1 . 1 . 1 Energy Gun 6 | . 1 . . 2 3 . . . . . . . . . . . . . . . . . . . . . . . Energy Cannon . | . . . . . . . . . . . . . . . . . . . . . . . . . . . . . Ballistic Gun 10 | 2 3 . . 1 4 . . . . . . . . . . . . . . . . . . . . . . . Ballistic Cannon 2 | . 2 . . . . . . . . . . . . . . . . . . . . . . . . . . . Launcher 7 | . . . . . 1 . . . . . . 2 . . . . . 1 1 . 1 . . . . . . 1 Special Weapon . | . . . . . . . . . . . . . . . . . . . . . . . . . . . . . Impact Weapon 1 | . . . . . . . . . . . . . . . . 1 . . . . . . . . . . . . Slashing Weapon 4 | . . . . . . 1 . . 1 . . . . . . 1 . 1 . . . . . . . . . . Piercing Weapon 8 | . . . . . . . . . 1 . 2 2 . . . . . . 1 . 1 . . 1 . . . . Special Melee Weapon 3 | . . . . . . 1 . . . . 1 . . . . . . . . . . . . . . 1 . . Unidentified Prototypes 12 | . . . . . 2 3 . . . . 1 . . . . 1 . . 3 . . . . 2 . . . . Parts Lost 12 | . . . . . 4 . . . . 1 1 2 . . 1 . . . . . . . . 1 . . . 2 Power 1 | . . . . . 1 . . . . . . . . . . . . . . . . . . . . . . . Propulsion 2 | . . . . . 2 . . . . . . . . . . . . . . . . . . . . . . . Utility 6 | . . . . . . . . . . 1 . 1 . . 1 . . . . . . . . 1 . . . 2 Weapon 3 | . . . . . 1 . . . . . 1 1 . . . . . . . . . . . . . . . . Highest Loss Streak 2 | . . . . . 2 . . . . 1 1 2 . . 1 . . . . . . . . 1 . . . 2 Average Slot Usage (%) 97 | . 99 100 100 100 94 99 100 100 100 98 98 97 93 93 87 99 100 100 99 100 87 89 89 98 94 90 99 97 Engine 4 | . 14 14 14 14 1 . . . . . . . . . . 4 5 5 5 5 5 5 5 5 5 4 8 2 Core 3 | . . . . . 7 7 7 7 7 7 6 6 6 6 6 . . . . . . . . . . . . . Treads 4 | . 14 14 14 14 10 . . . . . . . . . . . . . . . . . . . . . . . Wheel 3 | . 14 14 14 14 7 . . . . . . . . . . . . . . . . . . . . . . . Flight 8 | . . . . . . 14 15 15 15 15 12 13 13 13 13 11 11 11 11 11 10 10 10 9 10 9 16 16 Device 10 | . . . . . 9 20 15 15 10 15 13 13 13 13 13 10 11 11 10 11 8 10 10 10 10 10 13 12 Storage 12 | . 27 28 28 28 18 7 7 7 7 7 6 6 6 6 6 5 5 5 5 5 5 5 5 12 10 8 4 4 Processor 7 | . . . . . 10 8 7 7 7 7 6 6 6 6 6 10 11 11 11 11 10 10 10 10 15 17 13 14 Hackware 23 | . . . . . . 22 30 30 30 28 39 39 40 40 34 41 41 41 41 41 36 36 36 36 31 28 33 34 Protection 1 | . . . . . 10 . . . 4 . . . . . . . . . . . . . . . . . . . Energy Gun 2 | . 1 14 14 14 7 . . . . . . . . . . . . . . . . . . . . . . . Ballistic Gun 3 | . 18 . . 11 10 . . . . . . . . . . . . . . . . . . . . . . . Ballistic Cannon 1 | . 7 14 14 2 . . . . . . . . . . . . . . . . . . . . . . . . Slashing Weapon 1 | . . . . . . 6 7 7 6 7 1 . . . . 4 5 4 2 . . . . . . . . . Piercing Weapon 1 | . . . . . . . . . 1 . 4 5 6 6 6 . . . 1 . 3 . . 4 5 4 4 4 Special Melee Weapon 1 | . . . . . . 6 7 7 7 7 6 4 . . . . . . . . . . . . . . 4 1 Naked Turns . | . . . . . . . . . . . . . . . . . . . . . . . . . . . . . Heaviest Build 94 | 11 74 74 74 77 94 83 15 15 20 15 20 17 16 16 16 23 23 23 25 25 25 25 25 31 27 29 32 48 Greatest Support 48 | 16 20 10 10 10 40 20 16 16 22 16 22 25 25 16 16 25 25 25 25 25 25 25 25 35 30 30 39 48 Greatest Overweight (x) 9 | . 7 7 7 7 9 8 . . . . . . . . . . . . . . . . . . . . . . Average Overweight (x) . | . 3 7 7 7 6 . . . . . . . . . . . . . . . . . . . . . . . Largest Inventory Capacity 22 | 6 20 20 20 20 20 22 6 6 6 6 6 10 8 8 8 8 8 8 8 8 8 8 8 8 8 8 8 8 Average Capacity 11 | 5 15 20 20 20 20 6 6 6 6 6 6 6 8 8 8 8 8 8 8 8 8 8 8 8 8 8 8 8 Most Carried 20 | 4 20 20 20 20 20 20 6 6 6 6 6 8 8 8 8 8 8 8 8 8 8 8 8 8 8 8 7 8 Average Carried 10 | 2 14 20 20 19 19 6 6 5 5 6 5 6 7 8 8 7 8 8 8 8 8 8 8 7 8 7 6 7 Final Capacity 20 | 6 20 20 20 20 20 6 6 6 6 6 6 8 8 8 8 8 8 8 8 8 8 8 8 8 8 8 8 8 Final Carried 20 | 4 20 20 20 20 20 6 6 6 6 6 6 8 8 8 8 8 8 8 8 8 8 8 8 8 8 8 6 8 Class Distribution -------------------- 41% | Wizard-Sprinter 19% | Hauler-Mutant 10% | Hacker-Sprinter 9% | Wizard-Scout 6% | Mutant 4% | Scavenger-Mutant 4% | Commander-Mutant Dominant Class ---------------- Mutant | -10/Materials Hauler-Mutant | -10/Mines Commander-Mutant | -10/Exiles Commander-Mutant | -9/Mines Hauler-Mutant | -8/Materials Hacker-Sprinter | -7/Factory Hacker-Sprinter | -7/Lower Caves Hacker-Sprinter | -7/Lower Caves Hacker-Sprinter | -7/Data Miner Hacker-Sprinter | -6/Proximity Caves Wizard-Sprinter | -6/Factory Wizard-Sprinter | -6/Lower Caves Wizard-Sprinter | -6/Lower Caves Wizard-Sprinter | -6/Zion Wizard-Sprinter | -5/Proximity Caves Wizard-Sprinter | -5/Factory Wizard-Sprinter | -5/Upper Caves Wizard-Sprinter | -5/Upper Caves Wizard-Sprinter | -5/Zhirov Wizard-Sprinter | -4/Proximity Caves Wizard-Sprinter | -4/Factory Wizard-Sprinter | -4/Upper Caves Wizard-Sprinter | -4/Upper Caves Wizard-Sprinter | -4/Warlord Wizard-Scout | -3/Proximity Caves Wizard-Scout | -3/Research Wizard-Scout | -2/Research Wizard-Scout | -1/Access Resources | -11 -10 -10 -10 -9 -8 -7 -7 -7 -7 -6 -6 -6 -6 -6 -5 -5 -5 -5 -5 -4 -4 -4 -4 -4 -3 -3 -2 -1 ----------- Run | Scr Mat Min Exi Min Mat Fac Low Low Dat Pro Fac Low Low Zio Pro Fac Upp Upp Zhi Pro Fac Upp Upp War Pro Res Res Acc Matter Collected 3585 | 250 500 . . 30 866 323 . 58 . 48 226 135 30 . . 312 . . 91 22 19 . . 229 43 30 32 341 Remotely . | . . . . . . . . . . . . . . . . . . . . . . . . . . . . . Salvage Created 5197 | . 696 . . . 2150 211 . . 22 . 371 127 . . 28 1010 . . 91 . 43 . . 8 97 30 32 281 Parts 303 | . 51 . . . 126 16 . . 4 . 17 10 . . 1 29 . . 3 . 6 . . 2 11 5 3 19 Haulers Intercepted 17 | . 2 . . . 5 3 . . . . 2 . . . . 5 . . . . . . . . . . . . Recyclers Shooed 1 | . 1 . . . . . . . . . . . . . . . . . . . . . . . . . . . Parts Field Recycled . | . . . . . . . . . . . . . . . . . . . . . . . . . . . . . Retrieved Matter . | . . . . . . . . . . . . . . . . . . . . . . . . . . . . . Parts Self-Destructed 117 | . . . . . . . . . . . . 4 . . 9 . . . 3 . . . . 81 20 . . . Prevented 17 | . . . . . . . . . . . . . . . 2 . . . . . . . . 15 . . . . Kills | -11 -10 -10 -10 -9 -8 -7 -7 -7 -7 -6 -6 -6 -6 -6 -5 -5 -5 -5 -5 -4 -4 -4 -4 -4 -3 -3 -2 -1 ------- Run | Scr Mat Min Exi Min Mat Fac Low Low Dat Pro Fac Low Low Zio Pro Fac Upp Upp Zhi Pro Fac Upp Upp War Pro Res Res Acc Combat Hostiles Destroyed 77 | . 13 . . . 32 . . . . . . 6 . . 1 2 . 1 . . 4 . 2 1 8 . . 7 Melee 6 | . . . . . . . . . . . . . . . 1 2 . . . . . . . . . . . 3 Guns 39 | . 10 . . . 29 . . . . . . . . . . . . . . . . . . . . . . . Cannons 3 | . 3 . . . . . . . . . . . . . . . . . . . . . . . . . . . AOE 29 | . . . . . 3 . . . . . . 6 . . . . . 1 . . 4 . 2 1 8 . . 4 Classes Destroyed 13 | . 7 . . . 4 . . . . . 1 . . . . . . . . . 1 . . . . . . . Worker 11 | . 2 . . . 4 . . . . . . . . . . 4 . . . . . . . . . . . 1 Builder 1 | . . . . . . . . . . . . . . . . . . . . . 1 . . . . . . . Hauler 17 | . 2 . . . 5 3 . . . . 2 . . . . 5 . . . . . . . . . . . . Recycler 7 | . 2 . . . 2 . . . . . . . . . . 2 . . . . . . . . . . . 1 Mechanic 1 | . . . . . . . . . . . 1 . . . . . . . . . . . . . . . . . Operator 10 | . 1 . . . 1 3 . . . . 1 . . . . 1 . . . . . . . . . 1 1 1 Watcher 14 | . 3 . . . 4 1 . . . . 3 . . . . 3 . . . . . . . . . . . . Swarmer 39 | . 6 . . . 3 . . . . . . 6 . . 1 . . 1 . . 4 . 2 1 8 . . 7 Grunt 25 | . 7 . . . 16 . . . . . . . . . . 2 . . . . . . . . . . . . Brawler 2 | . . . . . 2 . . . . . . . . . . . . . . . . . . . . . . . Duelist 1 | . . . . . 1 . . . . . . . . . . . . . . . . . . . . . . . Sentry 9 | . . . . . 9 . . . . . . . . . . . . . . . . . . . . . . . Hunter 1 | . . . . . 1 . . . . . . . . . . . . . . . . . . . . . . . Best Kill Streak 6 | . 4 . . . 5 2 . . 1 . 3 3 . . 1 2 . 1 . . 5 . 2 1 6 1 1 5 Combat Bots Only 6 | . 3 . . . 5 . . . . . . 3 . . 1 1 . 1 . . 4 . 2 1 6 . . 5 Max Kills in Single Turn 3 | . 2 . . . 2 1 . . 1 . 1 2 . . 1 1 . 1 . . 3 . 1 1 3 1 1 2 Gunslinging 1 | . 1 . . . . . . . . . . . . . . . . . . . . . . . . . . . Exploded 3 | . . . . . 1 . . . . . . 2 . . . . . 1 . . 3 . 1 1 3 . . 2 Melee 1 | . . . . . . . . . . . . . . . 1 1 . . . . . . . . . . . 1 Uniques/NPCs Destroyed 1 | . . . . . . . . . 1 . . . . . . . . . . . . . . . . . . . Data Miner (-7/Data Miner) Combat | -11 -10 -10 -10 -9 -8 -7 -7 -7 -7 -6 -6 -6 -6 -6 -5 -5 -5 -5 -5 -4 -4 -4 -4 -4 -3 -3 -2 -1 -------- Run | Scr Mat Min Exi Min Mat Fac Low Low Dat Pro Fac Low Low Zio Pro Fac Upp Upp Zhi Pro Fac Upp Upp War Pro Res Res Acc Damage Taken 3288 | . 620 . . . 1376 34 . . 137 58 . 96 . . 82 151 . . 25 23 . . . 222 42 27 101 294 Core 857 | . 132 . . . 165 27 . . 48 21 . 26 . . 32 90 . . . 23 . . . 151 42 27 24 49 Absorbed by Shields . | . . . . . . . . . . . . . . . . . . . . . . . . . . . . . Core Remaining (%) 85 | 100 . . . 47 70 . . . . 86 . . . . 93 . . . . 88 . . . . 83 97 98 96 Volleys Fired 204 | . 65 . . . 110 . . . . . . 5 . . . . . 2 1 . 2 . 3 1 5 . . 10 Largest 2 | . 2 . . . 2 . . . . . . 1 . . . . . 1 1 . 1 . 1 1 1 . . 1 Hottest 103 | . 55 . . . 103 . . . . . . 36 . . . . . 80 80 . 80 . 80 80 80 . . 80 Shots Fired 375 | . 130 . . . 217 . . . . . . 5 . . . . . 2 1 . 2 . 3 1 5 . . 9 Gun 319 | . 105 . . . 214 . . . . . . . . . . . . . . . . . . . . . . . Cannon 25 | . 25 . . . . . . . . . . . . . . . . . . . . . . . . . . . Launcher 31 | . . . . . 3 . . . . . . 5 . . . . . 2 1 . 2 . 3 1 5 . . 9 Special . | . . . . . . . . . . . . . . . . . . . . . . . . . . . . . Kinetic 249 | . 130 . . . 119 . . . . . . . . . . . . . . . . . . . . . . . Thermal 95 | . . . . . 95 . . . . . . . . . . . . . . . . . . . . . . . Explosive 31 | . . . . . 3 . . . . . . 5 . . . . . 2 1 . 2 . 3 1 5 . . 9 Electromagnetic . | . . . . . . . . . . . . . . . . . . . . . . . . . . . . . Robot Hit Streak 31 | . 10 . . . 31 . . . . . . 3 . . . . . . . . . . . . . . . . Robot Miss Streak 3 | . 3 . . . 2 . . . . . . 2 . . . . . . . . . . . . . . . . Penetration Max 1 | . . . . . 1 . . . . . . . . . . . . . . . . . . . . . . . Secondary Targets 5 | . 2 . . . 3 . . . . . . . . . . . . . . . . . . . . . . . Max Gunslinging Chain 1 | . 1 . . . 1 . . . . . . . . . . . . . . . . . . . . . . . Shots Hit Robots 341 | . 83 . . . 171 20 . . 2 . 16 5 . . 1 29 . . 1 . . . . . . 3 3 7 Core Hits 186 | . 33 . . . 74 6 . . 1 . 7 8 . . 1 13 . 3 1 . 5 . 5 1 9 1 2 16 Critical Hits 6 | . 1 . . . 3 . . . 1 . 1 . . . . . . . . . . . . . . . . . Critical Kills 2 | . 1 . . . 1 . . . . . . . . . . . . . . . . . . . . . . . Critical Parts Destroyed 3 | . . . . . 2 . . . . . 1 . . . . . . . . . . . . . . . . . Melee Attacks 365 | . . . . . . 72 1 . 7 4 34 28 18 . 4 93 3 2 1 . 9 5 5 2 13 23 13 28 Impact 56 | . . . . . . . . . . . . . . . . 40 . . . . 5 5 5 1 . . . . Slashing 133 | . . . . . . 70 1 . 5 4 1 . . . . 47 3 2 . . . . . . . . . . Piercing 168 | . . . . . . . . . 1 . 29 28 18 . 4 6 . . 1 . 4 . . 1 13 22 13 28 Sneak Attacks 32 | . . . . . . 8 . . 2 . 7 . . . . 12 . . . . . . . . . 1 . 2 Combat Hostiles . | . . . . . . . . . . . . . . . . . . . . . . . . . . . . . Follow-up Attacks 3 | . . . . . . . . . . . . . . . . 3 . . . . . . . . . . . . Damage Inflicted 14245 | . 1084 . . . 3654 1059 . . 79 . 1181 785 . . 31 2215 . 272 131 . 474 . 437 105 1066 123 154 1395 Guns 3958 | . 699 . . . 3259 . . . . . . . . . . . . . . . . . . . . . . . Cannons 259 | . 259 . . . . . . . . . . . . . . . . . . . . . . . . . . . Explosions 4186 | . 126 . . . 395 . . . . . . 532 . . . . . 272 . . 474 . 437 103 1066 . . 781 Melee 5840 | . . . . . . 1059 . . 79 . 1181 253 . . 31 2215 . . 131 . . . . . . 123 154 614 Ramming 2 | . . . . . . . . . . . . . . . . . . . . . . . . 2 . . . . Kinetic 2645 | . 958 . . . 1687 . . . . . . . . . . . . . . . . . . . . . . . Thermal 1572 | . . . . . 1572 . . . . . . . . . . . . . . . . . . . . . . . Explosive 4186 | . 126 . . . 395 . . . . . . 532 . . . . . 272 . . 474 . 437 103 1066 . . 781 Electromagnetic . | . . . . . . . . . . . . . . . . . . . . . . . . . . . . . Impact 1209 | . . . . . . . . . . . . . . . . 1209 . . . . . . . . . . . . Slashing 1656 | . . . . . . 1059 . . . . . . . . . 597 . . . . . . . . . . . . Piercing 2975 | . . . . . . . . . 79 . 1181 253 . . 31 409 . . 131 . . . . . . 123 154 614 Highest Corruption 4 | . . . . . 2 4 4 4 4 4 . . . . . . . . . . . . . 1 . . . 4 Average Corruption 2 | . . . . . 2 3 4 4 4 4 . . . . . . . . . . . . . 1 . . . 1 Corruption Purged . | . . . . . . . . . . . . . . . . . . . . . . . . . . . . . Effects 55 | . . . . . 17 22 3 4 2 6 . . . . . . . . . . . . . . . . . 1 Message Errors 12 | . . . . . 3 6 . 2 . 1 . . . . . . . . . . . . . . . . . . Matter Fused 10 | . . . . . . 6 2 1 . 1 . . . . . . . . . . . . . . . . . . Heat Flow Errors 7 | . . . . . 4 3 . . . . . . . . . . . . . . . . . . . . . . Energy Discharges 9 | . . . . . 4 1 1 . 1 2 . . . . . . . . . . . . . . . . . . Data Loss (minor) 9 | . . . . . 1 4 . 1 1 2 . . . . . . . . . . . . . . . . . . Targeting Errors 7 | . . . . . 5 2 . . . . . . . . . . . . . . . . . . . . . . Weapon Failures 1 | . . . . . . . . . . . . . . . . . . . . . . . . . . . . 1 Overload Shots . | . . . . . . . . . . . . . . . . . . . . . . . . . . . . . Overflow Damage 1202 | . 8 . . . 65 185 . . . . 136 95 . . . 532 . 31 . . 3 . 48 18 19 . 32 30 Projectiles 8 | . 8 . . . . . . . . . . . . . . . . . . . . . . . . . . . Explosions 240 | . . . . . 65 . . . . . . 39 . . . . . 31 . . 3 . 48 18 19 . . 17 Melee 954 | . . . . . . 185 . . . . 136 56 . . . 532 . . . . . . . . . . 32 13 Knockbacks 8 | . 2 . . . . . . . . . . . . . . 6 . . . . . . . . . . . . Impact 6 | . . . . . . . . . . . . . . . . 6 . . . . . . . . . . . . Kinetic 2 | . 2 . . . . . . . . . . . . . . . . . . . . . . . . . . . Secondary . | . . . . . . . . . . . . . . . . . . . . . . . . . . . . . Self-Inflicted Damage 1 | . . . . . . . . . . . . . . . . . . . . . . . . 1 . . . . Shots . | . . . . . . . . . . . . . . . . . . . . . . . . . . . . . Rammed 2 | . 1 . . . . . . . . . . . . . . . . . . . . . . 1 . . . . Targets Rammed 2 | . 1 . . . . . . . . . . . . . . . . . . . . . . 1 . . . . Kicked . | . . . . . . . . . . . . . . . . . . . . . . . . . . . . . Crushed . | . . . . . . . . . . . . . . . . . . . . . . . . . . . . . Highest Temperature 270 | . 19 . . . 261 270 . . . . . . . . . . . 44 . . . . . . . . . 5 Average Temperature 52 | . 7 . . . 58 98 . . . . . . . . . . . 25 . . . . . . . . . 3 Received Heat Transfer 903 | . 186 . . . 612 . . . 18 24 . 9 . . 9 9 . . . . . . . 9 . 9 9 9 Siege Activations . | . . . . . . . . . . . . . . . . . . . . . . . . . . . . . Robots Corrupted . | . . . . . . . . . . . . . . . . . . . . . . . . . . . . . Combat Hostiles . | . . . . . . . . . . . . . . . . . . . . . . . . . . . . . Parts Fried 6 | . . . . . . . . . . . . . . . . 6 . . . . . . . . . . . . Impact Corruptions 10 | . . . . . . . . . . . . . . . . 10 . . . . . . . . . . . . Robots Melted . | . . . . . . . . . . . . . . . . . . . . . . . . . . . . . Combat Hostiles . | . . . . . . . . . . . . . . . . . . . . . . . . . . . . . Parts Melted 3 | . . . . . 3 . . . . . . . . . . . . . . . . . . . . . . . Heat Transferred 3071 | . . . . . 3071 . . . . . . . . . . . . . . . . . . . . . . . Parts Sabotaged . | . . . . . . . . . . . . . . . . . . . . . . . . . . . . . Parts Stolen . | . . . . . . . . . . . . . . . . . . . . . . . . . . . . . Parts Stripped . | . . . . . . . . . . . . . . . . . . . . . . . . . . . . . Power Chain Reactions . | . . . . . . . . . . . . . . . . . . . . . . . . . . . . . Missiles Intercepted . | . . . . . . . . . . . . . . . . . . . . . . . . . . . . . Alert | -11 -10 -10 -10 -9 -8 -7 -7 -7 -7 -6 -6 -6 -6 -6 -5 -5 -5 -5 -5 -4 -4 -4 -4 -4 -3 -3 -2 -1 ------- Run | Scr Mat Min Exi Min Mat Fac Low Low Dat Pro Fac Low Low Zio Pro Fac Upp Upp Zhi Pro Fac Upp Upp War Pro Res Res Acc Peak Influence 628 | . 248 70 . 161 545 236 . . . . 451 . . . . 436 . . . . 205 . . . . 628 292 438 Average Influence 115 | . 83 6 . 56 234 86 . . . . 114 . . . . 57 . . . . 55 . . . . 277 107 108 Maximum Alert Level 2 | . 1 . . . 2 1 . . . . 2 . . . . 2 . . . . 1 . . . . 2 1 2 Low Security (%) 76 | 100 90 100 . 100 41 81 . . . . 69 . . . . 95 . . . . 94 . . . . 69 60 76 Level 1 17 | . 9 . . . 43 18 . . . . 20 . . . . 4 . . . . 5 . . . . . 39 15 Level 2 5 | . . . . . 14 . . . . . 10 . . . . . . . . . . . . . . 30 . 7 Level 3 . | . . . . . . . . . . . . . . . . . . . . . . . . . . . . . Level 4 . | . . . . . . . . . . . . . . . . . . . . . . . . . . . . . Level 5 . | . . . . . . . . . . . . . . . . . . . . . . . . . . . . . High Security . | . . . . . . . . . . . . . . . . . . . . . . . . . . . . . Max Security . | . . . . . . . . . . . . . . . . . . . . . . . . . . . . . Squads Dispatched 24 | . 1 . . . 3 6 . . . . 2 . . . . 5 . . . . 1 . . . . 1 2 3 Investigation 11 | . 1 . . . . 4 . . . . 1 . . . . 1 . . . . . . . . . . 1 3 Extermination 6 | . . . . . . 1 . . . . 1 . . . . 3 . . . . . . . . . 1 . . Reinforcement 5 | . . . . . 1 1 . . . . . . . . . 1 . . . . 1 . . . . . 1 . Assault . | . . . . . . . . . . . . . . . . . . . . . . . . . . . . . Garrison 2 | . . . . . 2 . . . . . . . . . . . . . . . . . . . . . . . Intercept . | . . . . . . . . . . . . . . . . . . . . . . . . . . . . . Construction Impeded 1 | . . . . . . . . . . . . . . . . . . . . . 1 . . . . . . . Haulers Reinforced 1 | . . . . . . . . . . . . . . . . 1 . . . . . . . . . . . . Stealth | -11 -10 -10 -10 -9 -8 -7 -7 -7 -7 -6 -6 -6 -6 -6 -5 -5 -5 -5 -5 -4 -4 -4 -4 -4 -3 -3 -2 -1 --------- Run | Scr Mat Min Exi Min Mat Fac Low Low Dat Pro Fac Low Low Zio Pro Fac Upp Upp Zhi Pro Fac Upp Upp War Pro Res Res Acc Distress Signals 7 | . 2 . . . . . . . . . . . . . . 1 . . . . . . . 1 . . 1 2 Communications Jammed . | . . . . . . . . . . . . . . . . . . . . . . . . . . . . . Distress Signals . | . . . . . . . . . . . . . . . . . . . . . . . . . . . . . Times Spotted 199 | . 21 . . . 46 12 1 1 4 5 8 8 3 . 5 17 . 2 2 3 . . 1 19 2 6 8 25 Peak Tracking Total 14 | . 4 . . . 5 3 3 1 4 3 3 6 3 . 4 4 . 3 3 5 1 . 3 13 2 3 5 14 Tactical Retreats 31 | . 1 . . . 3 3 . . . 1 4 1 2 . 3 4 . . . . . . 1 1 . . 1 6 Traps | -11 -10 -10 -10 -9 -8 -7 -7 -7 -7 -6 -6 -6 -6 -6 -5 -5 -5 -5 -5 -4 -4 -4 -4 -4 -3 -3 -2 -1 ------- Run | Scr Mat Min Exi Min Mat Fac Low Low Dat Pro Fac Low Low Zio Pro Fac Upp Upp Zhi Pro Fac Upp Upp War Pro Res Res Acc Traps Triggered 7 | . 1 . . . 1 3 . . . . . . . . . 2 . . . . . . . . . . . . Indirectly . | . . . . . . . . . . . . . . . . . . . . . . . . . . . . . Trap Hack Attempts 3 | . . . . . . 3 . . . . . . . . . . . . . . . . . . . . . . Triggered . | . . . . . . . . . . . . . . . . . . . . . . . . . . . . . Disarmed . | . . . . . . . . . . . . . . . . . . . . . . . . . . . . . Reprogrammed 2 | . . . . . . 2 . . . . . . . . . . . . . . . . . . . . . . Reused . | . . . . . . . . . . . . . . . . . . . . . . . . . . . . . Traps Extracted . | . . . . . . . . . . . . . . . . . . . . . . . . . . . . . Installed . | . . . . . . . . . . . . . . . . . . . . . . . . . . . . . Triggered 28 | . . . . . . . . . . . . . 4 . 18 . . . . . . . . 6 . . . . Machines | -11 -10 -10 -10 -9 -8 -7 -7 -7 -7 -6 -6 -6 -6 -6 -5 -5 -5 -5 -5 -4 -4 -4 -4 -4 -3 -3 -2 -1 ---------- Run | Scr Mat Min Exi Min Mat Fac Low Low Dat Pro Fac Low Low Zio Pro Fac Upp Upp Zhi Pro Fac Upp Upp War Pro Res Res Acc Machines Disabled 12 | . 2 . . . 2 1 . . 1 . . . . . 1 . . . 1 . 3 . . . . . . 1 Max in Single Turn 2 | . 2 . . . 1 1 . . 1 . . . . . . . . . 1 . 2 . . . . . . 1 Garrison Access 10 | . . . . . 1 3 . . . . 2 . . . . 2 . . . . . . . . . 1 . 1 Energy Cycler 1 | . . . . . . . . . . . . . . . . . . . . . . . . . . . . 1 Machines Sabotaged 1 | . . . . . . . . . . . . . . . . . . . . . . . . . . . . 1 Garrisons Compromised . | . . . . . . . . . . . . . . . . . . . . . . . . . . . . . Overloaded Fab Kills . | . . . . . . . . . . . . . . . . . . . . . . . . . . . . . Fab Network Shutdowns 3 | . . . . . . . . . . . 1 . . . . 1 . . . . . . . . . 1 . . Hacking | -11 -10 -10 -10 -9 -8 -7 -7 -7 -7 -6 -6 -6 -6 -6 -5 -5 -5 -5 -5 -4 -4 -4 -4 -4 -3 -3 -2 -1 --------- Run | Scr Mat Min Exi Min Mat Fac Low Low Dat Pro Fac Low Low Zio Pro Fac Upp Upp Zhi Pro Fac Upp Upp War Pro Res Res Acc Machines Accessed 101 | . 8 . 2 . 10 17 . 2 2 . 13 . 1 . . 23 . 1 4 . 2 . . 2 . 5 3 6 Terminals 62 | . 8 . . . 8 11 . . . . 6 . . . . 18 . . . . 1 . . . . 3 3 4 Fabricators 8 | . . . . . . 2 . . . . 2 . . . . 2 . . . . . . . . . 1 . 1 Repair Stations 4 | . . . . . . . . . . . 3 . . . . . . . . . 1 . . . . . . . Recycling Units 1 | . . . . . . . . . . . . . . . . 1 . . . . . . . . . . . . Scanalyzers 2 | . . . . . 1 1 . . . . . . . . . . . . . . . . . . . . . . Garrison Access 10 | . . . . . 1 3 . . . . 2 . . . . 2 . . . . . . . . . 1 . 1 Total Hacks 433 | . 31 . 4 . 30 48 . 7 11 . 86 . 1 . . 112 . 1 17 . 10 . . 2 . 29 16 28 Successful 287 | . 20 . 4 . 14 33 . 7 11 . 57 . 1 . . 67 . 1 17 . 8 . . 2 . 20 10 15 Failed 145 | . 11 . . . 16 14 . . . . 29 . . . . 45 . . . . 2 . . . . 9 6 13 Catastrophic 27 | . . . . . 5 . . . . . 2 . . . . 16 . . . . . . . . . 1 1 2 Database Lockouts 1 | . . . . . . 1 . . . . . . . . . . . . . . . . . . . . . . Manual 222 | . 24 . 1 . 20 20 . . . . 44 . . . . 62 . . . . 6 . . . . 16 5 24 Terminals 309 | . 31 . . . 27 36 . . . . 52 . . . . 91 . . . . 8 . . . . 22 16 26 Fabricators 44 | . . . . . . 6 . . . . 14 . . . . 17 . . . . . . . . . 6 . 1 Repair Stations 20 | . . . . . . . . . . . 18 . . . . . . . . . 2 . . . . . . . Recycling Units 1 | . . . . . . . . . . . . . . . . 1 . . . . . . . . . . . . Scanalyzers 5 | . . . . . 2 3 . . . . . . . . . . . . . . . . . . . . . . Garrison Access 11 | . . . . . 1 3 . . . . 2 . . . . 3 . . . . . . . . . 1 . 1 Terminal Hacks 180 | . 10 . 4 . 8 20 . 7 11 . 26 . 1 . . 40 . 1 17 . 5 . . 2 . 9 9 10 Record 21 | . 1 . 3 . . . . 6 6 . . . . . . . . . 5 . . . . . . . . . Part Schematic 17 | . . . . . 2 1 . . 2 . 6 . . . . 2 . . 4 . . . . . . . . . Robot Analysis 6 | . . . . . . . . . . . . . . . . 2 . . 4 . . . . . . . . . Prototype ID Bank 20 | . 3 . . . 1 2 . . 3 . 1 . . . . 5 . . 4 . . . . . . . . 1 Open Door 6 | . . . . . . . . 1 . . . . 1 . . . . 1 . . . . . 2 . . . 1 Level Access Points 3 | . . . . . . . . . . . . . . . . . . . . . . . . . . 1 1 1 Branch Access Points 5 | . . . . . . 1 . . . . 1 . . . . 1 . . . . 2 . . . . . . . Emergency Access Points 1 | . . . . . . . . . . . . . . . . . . . . . 1 . . . . . . . Machine Index 2 | . . . . . . . . . . . 1 . . . . 1 . . . . . . . . . . . . Terminal Index 5 | . . . . . . 1 . . . . 1 . . . . 1 . . . . . . . . . 1 1 . Fabricator Index 4 | . . . . . . 1 . . . . 1 . . . . 1 . . . . . . . . . 1 . . Scanalyzer Index 2 | . . . . . . . . . . . 1 . . . . 1 . . . . . . . . . . . . Alert Level 19 | . 2 . . . 3 1 . . . . 2 . . . . 5 . . . . 1 . . . . . 2 3 Unreport Threat 18 | . 1 . . . 1 3 . . . . 3 . . . . 4 . . . . . . . . . . 3 3 Locate Traps 15 | . . . . . 1 3 . . . . 3 . . . . 6 . . . . . . . . . 2 . . Recall Extermination 6 | . . . . . . 1 . . . . 1 . . . . 3 . . . . . . . . . 1 . . Hauler Manifests 4 | . . . . . . 1 . . . . 1 . . . . 2 . . . . . . . . . . . . Registered Components 3 | . 1 . . . . 1 . . . . . . . . . 1 . . . . . . . . . . . . Registered Prototypes 3 | . . . . . . 1 . . . . 1 . . . . 1 . . . . . . . . . . . . Zone Layout 19 | . 2 . . . . 3 . . . . 3 . . . . 4 . . . . 1 . . . . 3 2 1 EX-Prototype ID Bank 1 | . . . 1 . . . . . . . . . . . . . . . . . . . . . . . . . Fabricator Hacks 22 | . . . . . . 3 . . . . 8 . . . . 7 . . . . . . . . . 4 . . Network Status 3 | . . . . . . . . . . . 2 . . . . 1 . . . . . . . . . . . . Load Schematic 8 | . . . . . . 2 . . . . 2 . . . . 2 . . . . . . . . . 2 . . Build 11 | . . . . . . 1 . . . . 4 . . . . 4 . . . . . . . . . 2 . . Repair Station Hacks 15 | . . . . . . . . . . . 13 . . . . . . . . . 2 . . . . . . . Scan Component 5 | . . . . . . . . . . . 4 . . . . . . . . . 1 . . . . . . . Repair 4 | . . . . . . . . . . . 3 . . . . . . . . . 1 . . . . . . . Refit 6 | . . . . . . . . . . . 6 . . . . . . . . . . . . . . . . . Recycling Unit Hacks 1 | . . . . . . . . . . . . . . . . 1 . . . . . . . . . . . . Report Inventory 1 | . . . . . . . . . . . . . . . . 1 . . . . . . . . . . . . Scanalyzer 4 | . . . . . 2 2 . . . . . . . . . . . . . . . . . . . . . . Insert Component 2 | . . . . . 1 1 . . . . . . . . . . . . . . . . . . . . . . Analyze 2 | . . . . . 1 1 . . . . . . . . . . . . . . . . . . . . . . Garrison Access Hacks 10 | . . . . . 1 3 . . . . 2 . . . . 2 . . . . . . . . . 1 . 1 Seal Access 10 | . . . . . 1 3 . . . . 2 . . . . 2 . . . . . . . . . 1 . 1 Unauthorized Hacks 55 | . 10 . . . 3 5 . . . . 8 . . . . 17 . . . . 1 . . . . 6 1 4 Terminals 42 | . 10 . . . 3 5 . . . . 4 . . . . 11 . . . . 1 . . . . 4 1 3 Track 7 | . 4 . . . 1 1 . . . . . . . . . . . . . . . . . . . 1 . . Botnet 33 | . 6 . . . 2 4 . . . . 4 . . . . 10 . . . . 1 . . . . 3 1 2 Operators 1 | . . . . . . . . . . . . . . . . 1 . . . . . . . . . . . . Sabotage 1 | . . . . . . . . . . . . . . . . . . . . . . . . . . . . 1 Fabricators 13 | . . . . . . . . . . . 4 . . . . 6 . . . . . . . . . 2 . 1 Report 2 | . . . . . . . . . . . 1 . . . . 1 . . . . . . . . . . . . Prioritize 4 | . . . . . . . . . . . 1 . . . . 2 . . . . . . . . . 1 . . Siphon 4 | . . . . . . . . . . . 1 . . . . 2 . . . . . . . . . 1 . . Haulers 2 | . . . . . . . . . . . 1 . . . . 1 . . . . . . . . . . . . Overload 1 | . . . . . . . . . . . . . . . . . . . . . . . . . . . . 1 Repair Stations . | . . . . . . . . . . . . . . . . . . . . . . . . . . . . . Recycling Units . | . . . . . . . . . . . . . . . . . . . . . . . . . . . . . Scanalyzers . | . . . . . . . . . . . . . . . . . . . . . . . . . . . . . Garrison Access . | . . . . . . . . . . . . . . . . . . . . . . . . . . . . . Data Cores Recovered 7 | . 1 . . . . 1 . . . . 1 . . . . 1 . . . . . . . . . 1 1 1 Used 1 | . . . . . . . . . . . . . . . . . . . . . . . . . . . 1 . Hacking Detections 53 | . 6 . . . 9 14 . . . . 6 . . . . 8 . . . . 1 . . . . 3 3 3 Full Trace Events 5 | . . . . . . 2 . . . . 1 . . . . 1 . . . . . . . . . . . 1 Feedback Events 2 | . . . . . . 1 . . . . . . . . . . . . . . . . . . . . . 1 Corruption 2 | . . . . . . 1 . . . . . . . . . . . . . . . . . . . . . 1 Feedback Blocked . | . . . . . . . . . . . . . . . . . . . . . . . . . . . . . Robot Schematics Acquired . | . . . . . . . . . . . . . . . . . . . . . . . . . . . . . Robots Built . | . . . . . . . . . . . . . . . . . . . . . . . . . . . . . Matter . | . . . . . . . . . . . . . . . . . . . . . . . . . . . . . Time . | . . . . . . . . . . . . . . . . . . . . . . . . . . . . . Total Robot Build Rating . | . . . . . . . . . . . . . . . . . . . . . . . . . . . . . Part Schematics Acquired 19 | . . . . . 3 2 . . 2 . 6 . . . . 2 . . 4 . . . . . . . . . Parts Built 11 | . . . . . . 1 . . . . 4 . . . . 4 . . . . . . . . . 2 . . Matter 2163 | . . . . . . 146 . . . . 694 . . . . 872 . . . . . . . . . 451 . . Time 496 | . . . . . . 24 . . . . 240 . . . . 152 . . . . . . . . . 80 . . Total Part Build Rating 57 | . . . . . . 3 . . . . 18 . . . . 25 . . . . . . . . . 11 . . Parts Repaired 4 | . . . . . . . . . . . 3 . . . . . . . . . 1 . . . . . . . Time 173 | . . . . . . . . . . . 93 . . . . . . . . . 80 . . . . . . . Parts Recycled . | . . . . . . . . . . . . . . . . . . . . . . . . . . . . . Recycled Matter . | . . . . . . . . . . . . . . . . . . . . . . . . . . . . . Retrieved Matter . | . . . . . . . . . . . . . . . . . . . . . . . . . . . . . Retrieved Components . | . . . . . . . . . . . . . . . . . . . . . . . . . . . . . Parts Scanalyzed 2 | . . . . . 1 1 . . . . . . . . . . . . . . . . . . . . . . Part Schematics Acquired 2 | . . . . . 1 1 . . . . . . . . . . . . . . . . . . . . . . Parts Damaged . | . . . . . . . . . . . . . . . . . . . . . . . . . . . . . Bothacking | -11 -10 -10 -10 -9 -8 -7 -7 -7 -7 -6 -6 -6 -6 -6 -5 -5 -5 -5 -5 -4 -4 -4 -4 -4 -3 -3 -2 -1 ------------ Run | Scr Mat Min Exi Min Mat Fac Low Low Dat Pro Fac Low Low Zio Pro Fac Upp Upp Zhi Pro Fac Upp Upp War Pro Res Res Acc Used RIF Installer . | . . . . . . . . . . . . . . . . . . . . . . . . . . . . . Robots Hacked 6 | . . . . . . 2 . . 1 . 2 . . . . . . . . . . . . . . 1 . . Non-combat 4 | . . . . . . 2 . . . . 2 . . . . . . . . . . . . . . . . . Combat 2 | . . . . . . . . . 1 . . . . . . . . . . . . . . . . 1 . . Robot Hacks Applied 6 | . . . . . . 2 . . 1 . 2 . . . . . . . . . . . . . . 1 . . parse_system 3 | . . . . . . 1 . . 1 . . . . . . . . . . . . . . . . 1 . . find_chute 1 | . . . . . . 1 . . . . . . . . . . . . . . . . . . . . . . find_recycling 1 | . . . . . . . . . . . 1 . . . . . . . . . . . . . . . . . find_station 1 | . . . . . . . . . . . 1 . . . . . . . . . . . . . . . . . Relay Couplers Released . | . . . . . . . . . . . . . . . . . . . . . . . . . . . . . Robots Rewired 3 | . . . 3 . . . . . . . . . . . . . . . . . . . . . . . . . Allies Hacked . | . . . . . . . . . . . . . . . . . . . . . . . . . . . . . Hacks Repelled . | . . . . . . . . . . . . . . . . . . . . . . . . . . . . . Allies | -11 -10 -10 -10 -9 -8 -7 -7 -7 -7 -6 -6 -6 -6 -6 -5 -5 -5 -5 -5 -4 -4 -4 -4 -4 -3 -3 -2 -1 -------- Run | Scr Mat Min Exi Min Mat Fac Low Low Dat Pro Fac Low Low Zio Pro Fac Upp Upp Zhi Pro Fac Upp Upp War Pro Res Res Acc Total Allies 14 | . . 5 3 . . . . . . . . . . 6 . . . . . . . . . . . . . . Largest Group 6 | . . 5 6 6 6 . . . . . . . . 6 6 . . . . . . . . . . . . . Highest-Rated Group 166 | . . 90 90 77 77 . . . . . . . . 166 166 . . . . . . . . . . . . . Highest-Rated Ally 37 | . . 31 31 21 21 . . . . . . . . 37 37 . . . . . . . . . . . . . Total Orders 3 | . . . . . . . . . . . . . . . . . . . . . . . . . . 3 . . RETURN 3 | . . . . . . . . . . . . . . . . . . . . . . . . . . 3 . . Ally Attacks 58 | . . 3 . 12 28 . . . . . . . . . 15 . . . . . . . . . . . . . Total Damage 756 | . . 65 . 149 260 . . . . . . . . . 282 . . . . . . . . . . . . . Kills 14 | . . 2 . 5 5 . . . . . . . . . 2 . . . . . . . . . . . . . Allies Corrupted . | . . . . . . . . . . . . . . . . . . . . . . . . . . . . . Allies Melted . | . . . . . . . . . . . . . . . . . . . . . . . . . . . . . Intel | -11 -10 -10 -10 -9 -8 -7 -7 -7 -7 -6 -6 -6 -6 -6 -5 -5 -5 -5 -5 -4 -4 -4 -4 -4 -3 -3 -2 -1 ------- Run | Scr Mat Min Exi Min Mat Fac Low Low Dat Pro Fac Low Low Zio Pro Fac Upp Upp Zhi Pro Fac Upp Upp War Pro Res Res Acc Robot Analysis Total 6 | . . . . . . . . . . . . . . . . 2 . . 4 . . . . . . . . . Derelict Logs Recovered 10 | . . 1 . 1 . . 1 . . 1 . 1 . 1 3 . . . . . . . 1 . . . . . Drone Launches 5 | . . . . . . . . . . . . . . . . . . . . . . . . . . 5 . . Drone Recoveries 5 | . . . . . . . . . . . . . . . . . . . . . . . . . . 5 . . Exploration | -11 -10 -10 -10 -9 -8 -7 -7 -7 -7 -6 -6 -6 -6 -6 -5 -5 -5 -5 -5 -4 -4 -4 -4 -4 -3 -3 -2 -1 ------------- Run | Scr Mat Min Exi Min Mat Fac Low Low Dat Pro Fac Low Low Zio Pro Fac Upp Upp Zhi Pro Fac Upp Upp War Pro Res Res Acc Turns Passed 14285 | 45 1345 741 415 250 2043 1428 80 131 68 312 990 680 344 343 424 1781 153 120 68 113 221 88 141 664 179 430 189 499 Spaces Moved 17829 | 35 820 472 254 147 897 2264 242 375 109 431 1463 1133 785 658 463 2679 246 310 138 247 245 232 362 667 408 466 341 940 Core 4 | 4 . . . . . . . . . . . . . . . . . . . . . . . . . . . . Treads 121 | . 1 . . . 120 . . . . . . . . . . . . . . . . . . . . . . . Legs . | . . . . . . . . . . . . . . . . . . . . . . . . . . . . . Wheels 2511 | 31 819 472 254 147 777 11 . . . . . . . . . . . . . . . . . . . . . . Hover . | . . . . . . . . . . . . . . . . . . . . . . . . . . . . . Flight 15193 | . . . . . . 2253 242 375 109 431 1463 1133 785 658 463 2679 246 310 138 247 245 232 362 667 408 466 341 940 Fastest Speed 26 | 50 100 150 150 150 150 32 32 32 32 32 32 32 32 32 32 32 32 32 32 32 32 32 32 32 32 32 29 26 Average Speed 48 | 94 125 150 150 150 166 34 32 32 32 32 32 32 32 32 32 32 32 32 32 32 32 32 32 32 32 32 29 26 Slowest Speed 240 | 100 180 150 150 150 240 160 32 32 32 32 32 32 32 32 32 32 32 32 32 32 32 32 32 32 32 32 29 29 Overloaded Moves . | . . . . . . . . . . . . . . . . . . . . . . . . . . . . . Propulsion Burnouts . | . . . . . . . . . . . . . . . . . . . . . . . . . . . . . Robots Hopped 19 | . . . . . . 4 . . 1 . 1 . . . . 3 . . . . . . . 1 . 1 4 4 Cave-ins Triggered . | . . . . . . . . . . . . . . . . . . . . . . . . . . . . . Exploration Rate (%) 55 | 3 97 98 69 47 88 52 35 61 77 56 37 90 80 82 55 74 46 60 60 47 8 43 52 61 64 19 20 28 Regions Visited 28 Branch Regions 19 Pre-discovered Areas 8 | . . . 1 . . . 1 1 1 . . 1 . . . . . . 3 . . . . . . . . . Known Exits Taken 23 | . . . . . 1 1 1 1 1 1 1 1 1 1 1 1 1 1 1 1 1 1 1 1 1 1 1 . Unknown Exits Taken 5 | 1 1 1 1 1 . . . . . . . . . . . . . . . . . . . . . . . . Scrap Searched 35 | . . 1 . 1 . . . . . 2 . 12 9 3 2 . 1 1 . 2 . 1 . . . . . . Spaces Dug 232 | . . . . . . 41 1 . 1 4 14 25 15 . . 49 3 2 . . 7 5 4 2 13 19 9 18 Terrain Destroyed 573 | . 8 . . . 24 41 1 . 1 4 14 79 15 . . 49 3 36 19 . 22 5 20 13 105 19 9 86 Melee 232 | . . . . . . 41 1 . 1 4 14 25 15 . . 49 3 2 . . 7 5 4 2 13 19 9 18 Projectile 3 | . . . . . 3 . . . . . . . . . . . . . . . . . . . . . . . AOE 338 | . 8 . . . 21 . . . . . . 54 . . . . . 34 19 . 15 . 16 11 92 . . 68 Actions | -11 -10 -10 -10 -9 -8 -7 -7 -7 -7 -6 -6 -6 -6 -6 -5 -5 -5 -5 -5 -4 -4 -4 -4 -4 -3 -3 -2 -1 --------- Run | Scr Mat Min Exi Min Mat Fac Low Low Dat Pro Fac Low Low Zio Pro Fac Upp Upp Zhi Pro Fac Upp Upp War Pro Res Res Acc Total 22575 | 44 1030 505 288 182 1289 2816 242 384 130 597 1937 1401 850 794 732 3496 316 324 157 280 372 237 375 1112 429 712 407 1137 Wait 3630 | . 69 34 5 21 149 362 . 6 7 162 395 224 41 127 266 702 68 9 5 34 116 1 6 425 3 201 51 141 Move 17763 | 34 819 471 253 146 896 2255 241 374 106 430 1460 1132 784 657 462 2672 245 309 137 246 244 231 361 665 407 463 332 931 Hop 18 | . . . . . . 4 . . 1 . 1 . . . . 3 . . . . . . . 1 . 1 3 4 Pick Up 121 | 4 32 . . 5 34 11 . 1 2 . 5 2 1 5 . 7 . . 1 . . . . 3 . 2 1 5 Fast Attach 86 | 6 3 . . 2 10 14 . . 1 . 14 2 2 . . 8 . . 5 . 1 . . 3 . 9 1 5 Attach 35 | . 1 . . . 7 10 . . . . 2 2 . . . 3 . . . . . . . 3 . 3 3 1 Detach 9 | . . . . . 1 1 . . . . . 2 . . . . . . . . . . . 1 . 2 . 2 Swap 85 | . 15 . . 1 27 7 . 2 3 1 6 3 1 . . 7 . 2 2 . 2 . . 3 1 . . 2 Drop 202 | . 25 . . 7 55 41 . 1 3 . 20 1 3 5 . 13 . . 5 . . . . 5 . 8 2 8 Fire 204 | . 65 . . . 110 . . . . . . 5 . . . . . 2 1 . 2 . 3 1 5 . . 10 Melee 351 | . . . . . . 72 1 . 7 4 34 28 18 . 4 81 3 2 1 . 7 5 5 2 13 23 13 28 Ram . | . . . . . . . . . . . . . . . . . . . . . . . . . . . . . Kick . | . . . . . . . . . . . . . . . . . . . . . . . . . . . . . Crush 1 | . 1 . . . . . . . . . . . . . . . . . . . . . . . . . . . Escape Stasis 37 | . . . . . . 36 . . . . . . . . . . . . . . . . . . . . 1 . Rewire 30 | . . . 30 . . . . . . . . . . . . . . . . . . . . . . . . . Trap 3 | . . . . . . 3 . . . . . . . . . . . . . . . . . . . . . . Miscellaneous . | . . . . . . . . . . . . . . . . . . . . . . . . . . . . . Route ------- -11/Scrapyard -10/Materials (discovered 4 exits: [*Mat x3] / [*Min]) -10/Mines (discovered 3 exits: [*Mat x2] / *Exi) -10/Exiles -9/Mines -8/Materials (discovered 3 exits: *Fac x3) -7/Factory (discovered 5 exits: *Fac x3 / *Low x2) -7/Lower Caves -7/Lower Caves -7/Data Miner -6/Proximity Caves -6/Factory (discovered 5 exits: *Fac / *Low x2 / Ext x2) -6/Lower Caves -6/Lower Caves (discovered 2 exits: *Fac / *Zio) -6/Zion -5/Proximity Caves -5/Factory (discovered 4 exits: *Fac x2 / *Upp x2) -5/Upper Caves -5/Upper Caves (discovered 2 exits: *Fac / *Zhi) -5/Zhirov -4/Proximity Caves -4/Factory (discovered 3 exits: *Upp x2 / Arm) -4/Upper Caves -4/Upper Caves (discovered 2 exits: *Res / *War) -4/Warlord -3/Proximity Caves -3/Research (discovered 4 exits: *Res x3 / Qua) -2/Research (discovered 4 exits: *Acc x3 / [*Tes]) -1/Access To Epsilon Eridani History --------- Turn | Location | Event 2 | -11/Scrapyard | Met Revision 17 21 | -11/Scrapyard | Discovered new exit (range 15) 46 | -11/Scrapyard | Entered Materials 324 | -10/Materials | Build established: Mutant 352 | -10/Materials | Discovered new exit (range 14) 371 | -10/Materials | Discovered new exit (range 6) 490 | -10/Materials | Discovered new exit (range 5) 790 | -10/Materials | Discovered new exit (range 8) 1021 | -10/Materials | Core integrity fell below 50% 1105 | -10/Materials | Build established: Hauler-Mutant 1391 | -10/Materials | Entered Mines 1434 | -10/Mines | Assisted by bots powering up and referring to "LRC-V3" 1523 | -10/Mines | Discovered new exit (range 6) 1651 | -10/Mines | Found a hidden stash of uninstalled traps 1755 | -10/Mines | Discovered new exit (range 8) 1873 | -10/Mines | Learned location of 1 exit from Materials 2116 | -10/Mines | Deemed a non-threat by the Exiles lab entrance 2116 | -10/Mines | Discovered new exit (range 5) 2132 | -10/Mines | Entered Exiles 2132 | -10/Exiles | Found Exiles lab destroyed 2132 | -10/Exiles | Accompanied by 5 allies 2162 | -10/Exiles | Led the pair of lost Derelicts to a safe place 2300 | -10/Exiles | Learned location of Zion (-6) 2377 | -10/Exiles | Opened EX-Vault 2530 | -10/Exiles | Discovered new exit (range 10) 2547 | -10/Exiles | Entered Mines 2547 | -9/Mines | Accompanied by 6 allies 2556 | -9/Mines | Met a Derelict bent on vengeance 2604 | -9/Mines | Build established: Commander-Mutant 2696 | -9/Mines | Learned location of 1 exit from Materials 2756 | -9/Mines | Discovered new exit (range 7) 2797 | -9/Mines | Entered Materials 2797 | -8/Materials | Accompanied by 6 allies 2797 | -8/Materials | Evolved 4 slots: Utility x4 2798 | -8/Materials | Identified exit to Factory 3277 | -8/Materials | Build established: Scavenger-Mutant 3524 | -8/Materials | Discovered exit to Factory (range 11) 3938 | -8/Materials | Build established: Hauler-Mutant 4519 | -8/Materials | Garrison activated, responded to threat 4678 | -8/Materials | Garrison activated, responded to threat 4840 | -8/Materials | Entered Factory 4840 | -7/Factory | Evolved 2 slots: Utility x2 5106 | -7/Factory | Identified exit to Lower Caves 5277 | -7/Factory | Fabricated Hacking Suite (x1) 5506 | -7/Factory | Discovered new exit (range 11) 5613 | -7/Factory | Discovered new exit (range 14) 5880 | -7/Factory | Build established: Hacker-Sprinter 5907 | -7/Factory | Central database locked down 6209 | -7/Factory | Discovered new exit (range 17) 6268 | -7/Factory | Entered Lower Caves 6295 | -7/Lower Caves | Encountered a Warlord checkpoint 6303 | -7/Lower Caves | Learned location of Extension (-6) 6347 | -7/Lower Caves | Discovered new exit (range 5) 6348 | -7/Lower Caves | Identified exit to Lower Caves 6348 | -7/Lower Caves | Entered another Lower Caves area 6349 | -7/Lower Caves | Encountered a Warlord checkpoint 6382 | -7/Lower Caves | Learned location of Armory (-4) 6382 | -7/Lower Caves | Learned Armory stockpile data 6475 | -7/Lower Caves | Discovered new exit (range 9) 6477 | -7/Lower Caves | Identified exit to Data Miner 6479 | -7/Lower Caves | Entered Data Miner 6479 | -7/Data Miner | Discovered new exit (range 6) 6486 | -7/Data Miner | Met Data Miner 6491 | -7/Data Miner | Learned location of Section 7 (-2) 6491 | -7/Data Miner | Acquired the access code to Warlord's prototype stash 6496 | -7/Data Miner | Received God Mode back door access code from Data Miner 6516 | -7/Data Miner | Destroyed Data Miner 6522 | -7/Data Miner | Found Ghost Barrier 6523 | -7/Data Miner | Found Quantum Router 6524 | -7/Data Miner | Found Deep Network Scanner 6528 | -7/Data Miner | Data Conduit disabled 6547 | -7/Data Miner | Identified exit to Proximity Caves 6547 | -7/Data Miner | Entered Proximity Caves 6835 | -6/Proximity Caves | Learned location of 1 exit from Factory 6853 | -6/Proximity Caves | Discovered new exit (range 6) 6855 | -6/Proximity Caves | Identified exit to Factory 6859 | -6/Proximity Caves | Entered Factory 6859 | -6/Factory | Evolved 2 slots: Utility x2 6860 | -6/Factory | Identified exit to Extension 6965 | -6/Factory | Fabricated Hacking Suite? 7020 | -6/Factory | Fabricated Hacking Suite (x1) 7111 | -6/Factory | Fabricated Kinetic Spear (x1) 7157 | -6/Factory | Local fabrication network quarantined 7171 | -6/Factory | Build established: Wizard-Sprinter 7198 | -6/Factory | Fabricated Kinetic Spear? 7301 | -6/Factory | Repaired Imp. Cesium-ion Thruster 7332 | -6/Factory | Discovered new exit (range 16) 7351 | -6/Factory | Identified exit to Factory 7463 | -6/Factory | Identified exit to Lower Caves 7514 | -6/Factory | Repaired Imp. Cesium-ion Thruster 7551 | -6/Factory | Repaired Imp. Cesium-ion Thruster 7849 | -6/Factory | Entered Lower Caves 8390 | -6/Lower Caves | Discovered new exit (range 5) 8391 | -6/Lower Caves | Identified exit to Lower Caves 8515 | -6/Lower Caves | Encountered a Warlord checkpoint 8529 | -6/Lower Caves | Entered another Lower Caves area 8532 | -6/Lower Caves | Discovered exit to Factory (range 10) 8697 | -6/Lower Caves | Encountered a Warlord checkpoint 8715 | -6/Lower Caves | Spotted B-75 Beast 8870 | -6/Lower Caves | Discovered new exit (range 8) 8873 | -6/Lower Caves | Identified exit to Zion 8873 | -6/Lower Caves | Entered Zion 8879 | -6/Zion | Gained Derelict followers 9014 | -6/Zion | Gained Derelict followers 9038 | -6/Zion | Given A8's code to call for help 9064 | -6/Zion | Learned Factory terminal intel 9088 | -6/Zion | Gained Derelict followers 9092 | -6/Zion | Discovered new exit (range 9) 9095 | -6/Zion | Identified exit to Proximity Caves 9216 | -6/Zion | Entered Proximity Caves 9216 | -5/Proximity Caves | Accompanied by 6 allies 9248 | -5/Proximity Caves | Learned Factory terminal intel 9251 | -5/Proximity Caves | Spotted B-75 Beast 9354 | -5/Proximity Caves | Learned Factory emergency access door positions 9391 | -5/Proximity Caves | Discovered exit to Factory (range 5) 9391 | -5/Proximity Caves | Learned Factory stockpile data 9505 | -5/Proximity Caves | Received a Behemoth hack from an annoying Tinkerer 9640 | -5/Proximity Caves | Entered Factory 9640 | -5/Factory | Evolved 2 slots: Utility x2 9643 | -5/Factory | Loaded intel: 20 terminal locations 9647 | -5/Factory | Identified exit to Upper Caves 9779 | -5/Factory | Fabricated Exp. Sensor Array (x1) 9779 | -5/Factory | Fabricated Adv. Reaction Control System? 9819 | -5/Factory | Fabricated Exp. Sensor Array? 9834 | -5/Factory | Fabricated Mni. Smartbomb Launcher (x1) 9843 | -5/Factory | Local fabrication network quarantined 10544 | -5/Factory | Discovered new exit (range 11) 11387 | -5/Factory | Discovered new exit (range 4) 11388 | -5/Factory | Identified exit to Factory 11421 | -5/Factory | Entered Upper Caves 11555 | -5/Upper Caves | Discovered new exit (range 15) 11574 | -5/Upper Caves | Identified exit to Upper Caves 11574 | -5/Upper Caves | Entered another Upper Caves area 11577 | -5/Upper Caves | Discovered exit to Factory (range 8) 11673 | -5/Upper Caves | Attracted the attention of an 0b10 checkpoint 11686 | -5/Upper Caves | Discovered new exit (range 13) 11693 | -5/Upper Caves | Identified exit to Zhirov 11694 | -5/Upper Caves | Entered Zhirov 11694 | -5/Zhirov | Discovered new exit (range 3) 11701 | -5/Zhirov | Met Zhirov 11707 | -5/Zhirov | Learned location of Quarantine (-3) 11707 | -5/Zhirov | Learned location of Testing (-2) 11707 | -5/Zhirov | Learned location of Command (-1) 11709 | -5/Zhirov | Zhirov requested help retrieving the SGEMP Prototype 11715 | -5/Zhirov | Found Alien Artifact 11715 | -5/Zhirov | Identified Integrated Dissipator 11715 | -5/Zhirov | Installed Integrated Dissipator, increased core heat dissipation (+2%) 11752 | -5/Zhirov | Identified exit to Proximity Caves 11754 | -5/Zhirov | Cloak Generator disabled 11754 | -5/Zhirov | Attacked by Zhirov 11762 | -5/Zhirov | Entered Proximity Caves 11772 | -4/Proximity Caves | Spotted B-86 Titan 11873 | -4/Proximity Caves | Discovered exit to Factory (range 9) 11875 | -4/Proximity Caves | Entered Factory 11875 | -4/Factory | Evolved 2 slots: Utility x2 11876 | -4/Factory | Loaded intel: 20 terminal locations 11882 | -4/Factory | Identified exit to Upper Caves 11882 | -4/Factory | Identified exit to Armory 11983 | -4/Factory | Repaired Exp. Sensor Array 12096 | -4/Factory | Entered Upper Caves 12181 | -4/Upper Caves | Discovered new exit (range 9) 12184 | -4/Upper Caves | Identified exit to Upper Caves 12184 | -4/Upper Caves | Entered another Upper Caves area 12190 | -4/Upper Caves | Discovered new exit (range 8) 12190 | -4/Upper Caves | Learned 12 Research zone layouts 12192 | -4/Upper Caves | Encountered a Warlord checkpoint 12192 | -4/Upper Caves | Identified exit to Research 12223 | -4/Upper Caves | Attracted the attention of an 0b10 checkpoint 12322 | -4/Upper Caves | Discovered new exit (range 10) 12325 | -4/Upper Caves | Identified exit to Warlord 12325 | -4/Upper Caves | Entered Warlord 12336 | -4/Warlord | System corruption cleaned by Quarantine Array 12366 | -4/Warlord | Visited the Vortex Lab 12388 | -4/Warlord | Warlord's base attacked by MAIN.C 12417 | -4/Warlord | Found Prototype Device 12417 | -4/Warlord | Identified System Purifier 12572 | -4/Warlord | Opened side exit 12738 | -4/Warlord | Warlord forces counterattacked 12771 | -4/Warlord | Spotted Executioner 12984 | -4/Warlord | Discovered new exit (range 8) 12986 | -4/Warlord | Identified exit to Proximity Caves 12988 | -4/Warlord | Spotted Striker 12988 | -4/Warlord | Spotted Executioner 12989 | -4/Warlord | Entered Proximity Caves 13165 | -3/Proximity Caves | Discovered exit to Research (range 9) 13168 | -3/Proximity Caves | Entered Research 13168 | -3/Research | Evolved 2 slots: Propulsion x1, Utility x1 13169 | -3/Research | Identified exit to Quarantine 13186 | -3/Research | Build established: Wizard-Scout 13225 | -3/Research | Identified exit to Research 13351 | -3/Research | Spotted B-86 Titan 13383 | -3/Research | Fabricated Exp. Signal Interpreter? 13442 | -3/Research | Fabricated Combat Drone Bay (x1) 13465 | -3/Research | Local fabrication network quarantined 13598 | -3/Research | Entered another Research area 13598 | -2/Research | Evolved 2 slots: Power x1, Propulsion x1 13660 | -2/Research | Discovered new exit (range 12) 13673 | -2/Research | Identified exit to Access 13787 | -2/Research | Entered Access 13787 | -1/Access | Evolved 2 slots: Utility x2 13909 | -1/Access | Identified exit to Surface 14042 | -1/Access | Energy Cycler disabled 14143 | -1/Access | Spotted B-99 Colossus 14286 | *** | Escaped! Last Messages --------------- 14213_ W-44 Eye sends out distress signal. 14215_ C-30 ARC bursts open, deploying its payload. 14215_ H-88 Terminator unfolds itself. 14216_ C-30 ARC bursts open, deploying its payload. 14216_ S-43 Plague unfolds itself. 14216_ Adv. Melee Analysis Suite destroyed. 14216_ Penetrated by Slug. 14216_ Slug penetrates Wall. 14217_ Imp. Hacking Suite destroyed. 14218_ Slug penetrates R-10 Processor. 14223_ Penetrated by Slug. 14223_ Slug penetrates Wall. 14250_ Connecting with Terminal... >>Force(Sabotage) SYSTEM_VULNERABLE[Wave Collapse Detector] NETWORK_OVERLOAD COORDINATES_RETRIEVED 14250_ ALERT: Suspicious activity at Terminal A001. Dispatching Investigation squad. 14251_ The Access Shell folds into the floor. Map ----- +----------------------------------------------------+ | ####???????# #??????????#### ###???# #????# | | ############ u ############ #???# #????# | | ##### ###### | | ######## | | ???????# | | ???????# ############### | | ???????###################### #?????????????? | | ########## #?????????????########?????????????? | | #?????????????????????????##???????? | | #?????????????????????????########## | | ########## #??????????????????????????# | | ????????## ##??????????????????????????# | | ????????# #???????????????????????????# ""% | | ???????# #???????????????????????????# """ | | ???????# #???????????????????????????# "F | | ??????# #???????????????????????????# """ g | | #?????# #???????????????????????????# """ | | #?????# #???????????????????????????# """ g | | #?????# #?????###???????????????????# | | #?????# ####### ##########??????????# | | #####?????# """T""" "??????????# | | ???Y??????# """ """ "????BB????# | | ??????????# "????BB????#####+### | | ??????????# "???? | | ??????????# "" "???? | | ??????????# @" "????? | | ??????????# "????? | | ??????????# "????BB ######## | | ??????????# "????BB????#??????# | | ??????????# "??????????#??????# | | ??????????# ####### ##########?????????????????# | | ??????????# #?????###??????????????????????????# | | ??????????# #?Y????????????????????????????????# | | ??????????# #??????????????????????????????????# | | ??????????#g ???????????????????????????????????# | | ??????????# ???????????????????????????????????# | | ??????????# ????????????????????????????????####u | | u??????ggg ????????????????????????????? | | ?????????? ????????????????????????????# | | ?????????? ????????????????????????????# u | | ????????? ????????????????????????????# C | | ????????? ????????????????????????????# | | ????????? ????????????????????????????# | | ??????R?? ????????????????????????????# ? | | ?????????????w???????????????????????????# ? | | ??????????????u??????????????????????????# ? | | ?????????????????????????????????????????# ? | | ?????????????????????k???????????????????# k ? | | ?????????????????????????????????????????# # | | ?????????????????????k???????????????????# # | +----------------------------------------------------+ Best States ------------- Heat Dissipation 72 Energy Generation 53 Energy Capacity 950 Matter Stores 443 Matter Capacity 600 Sight Range 23 Robot Scan Range 30 Terrain Scan Density 210 Power Amplification 20 Additional Mass Support 9 Armor Coverage 600 Utility Shielding 33 Evasion (%) 78 Targeting Accuracy 8 Melee Accuracy 16 Recoil Reduction 2 Salvage Targeting 1 Offensive Hacking 76 Defensive Hacking 78 Item Schematics ----------------- Imp. Flight Unit | -8/Materials | Hacked Adv. Sensor Array | -8/Materials | Scanalyzed Hacking Suite | -8/Materials | Hacked Spear | -7/Factory | Hacked Imp. Cesium-ion Thruster | -7/Factory | Scanalyzed Combat Drone Bay | -7/Data Miner | Free Kinetic Spear | -7/Data Miner | Free Exp. Sensor Array | -6/Factory | Hacked Exp. Signal Interpreter | -6/Factory | Hacked Exp. Utility Shielding | -6/Factory | Hacked Fusion Compressor | -6/Factory | Hacked Mni. Smartbomb Launcher | -6/Factory | Hacked Adv. Hacking Suite | -6/Factory | Hacked Gravity Neutralizing Apparatus | -5/Factory | Hacked Exp. Cesium-ion Thruster | -5/Factory | Hacked Assault Drone Bay | -5/Zhirov | Free Exp. Heat Sink | -5/Zhirov | Free Exp. Optical Array | -5/Zhirov | Free Imp. Arc Thrower | -5/Zhirov | Free Robot Schematics ------------------ None Fabricated ------------ Hacking Suite | x1 | -7/Factory Hacking Suite | x1 | -6/Factory Hacking Suite | x1 | -6/Factory Kinetic Spear | x1 | -6/Factory Kinetic Spear | x1 | -6/Factory Exp. Sensor Array | x1 | -5/Factory Adv. Reaction Control System | x1 | -5/Factory | Preloaded Exp. Sensor Array | x1 | -5/Factory Mni. Smartbomb Launcher | x1 | -5/Factory Exp. Signal Interpreter | x1 | -3/Research Combat Drone Bay | x1 | -3/Research Alien Tech Used ----------------- Integrated Dissipator Achievements -------------- Exposed Challenges ------------ None Game ------ Seed ShadeArmoredAnalyzer Manual? 0 Play Time 02:47:48 Cumulative 782.9 hours Start 2020.04.22 @ 11:54:35 End 2020.04.22 @ 15:23:52 Sessions 1 Manual Loads 0 Difficulty Rogue Special Mode None Game No. 674 Rogue 634 Adventurer 40 Explorer 0 Win Type 0 Total 73 Types 50/2/16/2/0/1/2 Lore% 93 Gallery% 95 Achievement% 77 Wizard Run 0 Options --------- ASCII 0 Keyboard 0 Movement Numpad Keybinds 0 Fullscreen 0 Font 16/Terminus Map View 76x50 Tactical HUD 1 Map Filters NONE Filters NONE Steam 1 RUN: 4e7ab715-1a53-44d4-a593-d0a0ab69f37a